{"text_format":"1","workbook":"xlsx","n_sheets":8,"sheets":["Info","KoVar","SBV","SBVInfo","PElim","AnfNit","KTB","KSew"],"not_rendered":{"charts":0,"images":13,"macros":1,"external_links":0,"defined_names":103,"comments":0,"pivot_tables":0},"unopened":[],"bounds":{"document_bytes":16777216,"sheet_cells":100000,"rows_first":2000,"rows_last":500,"rows_between":2000,"halvings":0,"cell_chars":16384,"cell_head_chars":4096},"cells_cut":0,"cells_raw":0,"read":"whole","date_system":"1900"}

{"sheet":"Info","index":0,"n_rows":154,"n_cols":3,"rows_kept":154,"cut":false,"hidden":false,"merged":[]}
[null,null,"Klärtechnische Berechnungen"]
[null,null,"Diese Datei enthält diverse Berechnugsformeln zur Ermittlung klärtechnischer Zustands-"]
[null,null,"grössen in ARA. In der Regel können die benötigten Parameter im entsprechenden"]
[null,null,"Tabellenblatt zum jeweiligen Parameter eingegeben werden (gelbe Felder)."]
[null,null,"Das Tabellenblatt <KoVar> enthält diverse Konstanten sowie einige grundlegende"]
[null,null,"Variablen wie die Dimensionierungsgrössen einer ARA. Für einige Berechnungen"]
[null,null,"ist die Angabe dieser Stammdaten nötig. Geben sie deshalb zunächst ab"]
[null,null,"ab Zeile 38 die Stammdaten ihrer ARA ein."]
[]
[]
["Konstanten und Variablen (KoVar)"]
[null,"Produktekosten"]
[null,null,"Angabe der effektiven Kosten des Produkts pro Tonne (t). Zu beachten ist, "]
[null,null,"dass die Liefermenge und die Gebindegrösse starken Einfluss auf den Preis hat"]
[]
[null,"Transportpauschalen"]
[null,null,"Angabe der gesamten Transportkosten pro Jahr. Wenn diese Kosten eingegeben werden,"]
[null,null,"beinhalten die berechneten Kosten diese Transportkosten."]
[]
[null,"spez. Belastungen pro Einwohnerwert"]
[null,null,"Damit werden die Einwohnerwerte - entsprechende Eingaben vorausgesetzt - berechnet."]
[]
[null,"Einleitungsbedingungen"]
[null,null,"Werden nicht direkt für die Berechnungen benötigt,"]
[null,null,"sind der Vollständigkeit halber jedoch hier aufgeführt."]
[]
[null,"Dimensionierungsgrössen der ARA"]
[null,null,"Wenn die Dimensionierungswerte eingegeben werden,"]
[null,null,"kann die Auslastung berechnet werden."]
[]
[null,"Molmassen"]
[null,null,"Werden für diverse Berechnungen benötigt."]
[]
[null,"Dichteangaben"]
[null,null,"Werden für diverse Berechnungen (Umrechnung Masse - Volumen) benötigt."]
[]
["Säurebindevermögen (SBV)"]
[null,"Eingaben"]
[null,null,"Zwingend benötigte Eingaben zur Berechnung des SBV-Mankos sind die"]
[null,null,"Abwassermenge, die Stickstoff- bzw. die Ammoniumkonzentration (verwendet wird"]
[null,null,"in absteigender Priorität NH4-N Zufluss BB, Nges im Zufluss Rohabwasser,"]
[null,null,"NH4-N im Zufluss Rohabwasser), das SBV im Zufluss und das minimal benötigte"]
[null,null,"SBV im Abfluss, sowie die Nitrifikationsleistung."]
[]
[null,"Berechnungen Nitrifikation /Alkalinität"]
[null,null,"Berechnung der relevanten absoluten und stöchiometirschen Stickstofffrachten."]
[]
[null,"Benötigte Mengen zur Neutralisation/Pufferung pro Tag"]
[null,null,"Berechnung der pro Tag benötigten Mengen der aufgeführten Chemikalien zur"]
[null,null,"Einhaltung eines ausreichenden Säurebindevermögens und damit des pH-Werts"]
[null,null,"im Belüftungsbecken bzw. im ARA-Abfluss."]
[]
[null,"Benötigte Mengen zur Neutralisation/Pufferung pro m3 Abwasser"]
[null,null,"Berechnung der pro m3 Abwasser benötigten Mengen der aufgeführten Chemikalien"]
[null,null,"zur Einhaltung eines ausreichenden Säurebindevermögens und damit des pH-Werts"]
[null,null,"im Belüftungsbecken bzw. im ARA-Abfluss."]
[]
[null,"Kosten"]
[null,null,"Berechnung der Kosten für die aufgeführten Chemikalien pro Tag, pro Jahr und "]
[null,null,"pro 1'000 m3. Falls die Transportkosten (Jahrespauschale) eingegeben wurden,"]
[null,null,"werden die Transportkosten ebenfalls berücksichtigt."]
[]
[null,"Frachten und Einwohnerwerte im Rohabwasser"]
[null,null,"Berechnung der Frachten und Einwohnerwerten im Rohabwasser"]
[null,null,"aufgrund der getätigten Eingaben."]
[]
[null,"Auslastung ARA"]
[null,null,"Berechnung der Auslastung der ARA, Vergleich der Frachten"]
[null,null,"mit den Dimensionierungswerten, sofern diese eingegeben wurden."]
[]
[null,"Nährstoffverhältnisse im Rohabwasser"]
[null,null,"Berechnung der Nährstoffverhältnisse im Rohabwasser."]
[]
["Informationen zu Wasserhärte und Bestimmung des Säurebindevermögens (SBVInfo)"]
[null,"Umrechnung von Wasserhärteeinheiten"]
[null,null,"Umrechnung der verschiedenen Einheiten ineinander"]
[]
[null,"Beurteilung von Wasserhärten"]
[null,null,"Einteilung und Beurteilung der Grössenordnungen der Wasserhärten."]
[]
[null,"Bestimmung des Säurebindevermögens"]
[null,null,"Anleitung zur Messung des SBV durch Titration"]
[]
["Phosphatfällung (PElim)"]
[null,"Eingaben"]
[null,null,"Eingabe der erforderlichen Parameter zur Berechnung der Dosiermenge an Fällmittel."]
[]
[null,"Betriebsparameter"]
[null,null,"Berechnete Betriebsparameter der Phosphatfällung"]
[]
[null,"Bedarf und Dosierung"]
[null,null,"Berechnung der benötigten Fällmittlmengen absolut,"]
[null,null,"sowie der Dosierung des Fällmittels pro Tag bzw. pro m3 Abwasser. "]
[]
["Anforderung Nitrifikation"]
[null,null,"Die Anforderungen für die Nitrifikation sind in der Gewässerschutzverordnung (GSchV)"]
[null,null,"festgelegt: Bei Abwassertemperaturen >= 10°C muss eine Abflusskonzentration von"]
[null,null,"2 mg NH4-N/l, sowie ein Reinigungseffekt von 90% (bezogen auf den Kjeldahl-Stickstoff"]
[null,null,"im Rohabwasser) eingehalten werden. Bei Abwassertemperaturen < 10°C werden die "]
[null,null,"Anforderungen entsprechend der Wachstumsgeschwindigkeit der Nitrifikanten reduziert. "]
[null,null,"Es ist die Eingabe der Abwassertemperatur und der Zuflusskonzentration erforderlich."]
[]
["Klärtechnische Berechnungen (KTB)"]
[null,null,"Berechnung diverser Betriebsparameter in ARA."]
[null,null,"Jeder Betriebsparameter ist als separater Block aufgeführt und benötigt ein"]
[null,null,"eigenes Set an Eingabe-Parmeter."]
[null,null,"Beckendimensionierungen (Volumina und Oberflächen) können aus den"]
[null,null,"Dimensionierungsgrössen (Register <KoVar>) importiert werden."]
[null,"Schlammalter"]
[null,null,"benötigte Parameter: Volumen Belebungsbecken, ÜSS: Menge und TS-Gehalt"]
[null,null,"fakultativ: Abwassermenge und GUS"]
[null,null,"für SBR: gesamte Zykluszeit und Zeit der aeroben Phase"]
[null,null,"Das aerobe Schlammalter bei ARA mit einer anoxischen Zone kann berechnet werden,"]
[null,null,"wenn anstelle des gesamten Beckenvolumens"]
[null,null,"nur das aerob betriebene Volumen eingegeben wird."]
[null,"Schlammindex"]
[null,null,"benötigte Parameter: TS-Gehalt (TS) und Absetzvolumen (AV)"]
[null,"Aufenthaltszeit (VKB, BB, NKB, FR)"]
[null,null,"benötigte Parameter: Beckenvolumen (VKB, BB, NKB, FR), "]
[null,null,"Abwasser- bzw. Schlammmenge"]
[null,"hydraulische Oberflächenbelastung (VKB, NKB)"]
[null,null,"benötigte Parameter: Beckenoberfläche, Abwassermenge"]
[null,"TS-Oberflächenbelastung (NKB)"]
[null,null,"benötigte Parameter: Beckenoberfläche, Abwassermenge, TS-Gehalt im BB"]
[null,"Schlammvolumenbelastung (NKB)"]
[null,null,"benötigte Parameter: Beckenoberfläche, Abwassermenge, Absetzvolumen Belebtschlamm"]
[null,"BSB5- bzw. CSB-Schlammbelastung (BB)"]
[null,null,"benötigte Parameter: Abwassermenge, BSB5- bzw. CSB-Konzentration im Zufluss,"]
[null,null,"TS-Gehalt im Belebungsbecken, Beckenvolumen Belüftungsbecken"]
[null,"BSB5- bzw. CSB-Volumenbelastung (BB)"]
[null,null,"benötigte Parameter: Abwassermenge, BSB5- bzw. CSB-Konzentration im Zufluss,"]
[null,null,"Beckenvolumen Belüftungsbecken"]
[null,"BSB5- bzw. CSB-Oberflächenbelastung (TK/TTK)"]
[null,null,"benötigte Parameter: Abwassermenge, BSB5- bzw. CSB-Konzentration im Zufluss,"]
[null,null,"aktive Oberfläche TK bzw. TTK"]
[null,"hydr. Oberflächenbelastung (Filter)"]
[null,null,"benötigte Parameter: Abwassermenge, aktive Oberfläche des Filters"]
[null,"TS- und oTS-Belastung Faulraum"]
[null,null,"benötigte Parameter: Volumen Faulraum, Frischschlammmenge (Beschickung FR),"]
[null,null,"TS-Gehalt und oTS-Gehalt (Glühverlust) des Frischschlammes"]
[null,"Abbauleistungen"]
[null,null,"Berechnung der Abbauleistung (Elimination) beliebiger Parameter"]
[null,null,"benötigte Parameter: Konzentrationen im Zu- und Abfluss"]
[null,"Bechmarks (Verhältniszahlen)"]
[null,null,"Berechnung diverser Verhältniszahlen im ARA-Betrieb über einen freien Zeitraum."]
[]
["Klärschlammentwässerung"]
[null,null,"Von folgenden 4 Variablen:"]
[null,null,"- Klärschlamm flüssig, Menge"]
[null,null,"- Klärschlamm flüssig, TS-Gehalt"]
[null,null,"- Klärschlamm entwässert, Menge"]
[null,null,"- Klärschlamm entwässert, TS-Gehalt"]
[null,null,"müssen 3 eingegeben werden. Die gesuchte Grösse (keine Eingabe oder 0)"]
[null,null,"wird berechnet."]

{"sheet":"KoVar","index":1,"n_rows":90,"n_cols":10,"rows_kept":90,"cut":false,"hidden":false,"merged":[]}
["Produktekosten",null,null,null,null,"Bemerkungen",null,"VarName",null,"HilfsVar"]
[null,"Stoff","Einheit","Preis",null,"Die Preise hängen sehr stark von der Bestellmenge,"]
[null,"CaCO3 fest (Kreide)","CHF/t",101,null,"vom Lieferanten, vom Lieferort und von den aktuellen ",null,"CHF_CaCO3"]
[null,"NaOH fest","CHF/t",801,null,"Marktpreisen ab. Für aktuelle Daten ist daher immer",null,"CHF_NaOH100"]
[null,"NaOH 50%","CHF/t",401,null,"eine aktuelle Offerte anzufordern!",null,"CHF_NaOH50"]
[null,"NaOH 30%","CHF/t",301,null,null,null,"CHF_NaOH30"]
[null,"Ca(OH)2 fest","CHF/t",901,null,null,null,"CHF_CaO2H2"]
[null,"NaAlO2 fest","CHF/t",null,null,null,null,"CHF_NaAlO2_100"]
[null,"NaAlO2 Lösung, 30%","CHF/t",1001,null,null,null,"CHF_NaAlO2_30"]
[]
["Transportpauschalen pro Jahr"]
[null,"Kosten pauschal pro Jahr","Fr/a",3201,null,null,null,"CHF_TrspJahr"]
[null,"Kosten pro Tag","Fr/d",{"$f":"IF(ISNUMBER(CHF_TrspJahr), CHF_TrspJahr / 365, \"\")","v":8.7698630136986306},null,null,null,"CHF_TrspTag"]
[]
["Dimensionierungsgrössen der ARA"]
[null,"Parameter","Einheit","Wert"]
[null,"Abwassermenge pro Tag Q-24","m3/d",3000,null,null,null,"DimQ24"]
[null,"Abwasserzufluss bei Trockenwetter Q-TW","l/s",50,null,null,null,"DimQTW"]
[null,"Abwasserzufluss bei Regenwetter Q-RW","l/s",100,null,null,null,"DimQRW"]
[null,"BSB5 Fracht im Rohabwasser","kg/d",500,null,null,null,"DimBSB5"]
[null,"CSB Fracht im Rohabwasser","kg/d",1000,null,null,null,"DimCSB"]
[null,"Pges Fracht im Rohabwasser","kg/d",15,null,null,null,"DimPges"]
[null,"Nges Fracht im Rohabwasser","kg/d",110,null,null,null,"DimNges"]
[null,"NH4-N Fracht im Rohabwasser","kg/d",60,null,null,null,"DimNH4N"]
[]
[null,"Vorklärbecken, Oberfläche O-VKB","m2",100,null,null,null,"DimVKB_O"]
[null,"Vorklärbecken, Volumen V-VKB","m3",200,null,null,null,"DimVKB_V"]
[null,"Belebungsbecken, Volumen V-BB","m3",800,null,null,null,"DimBB:V"]
[null,"Nachklärbecken, Oberfläche O-NKB","m2",200,null,null,null,"DimNKB_O"]
[null,"Nachklärbecken, Volumen V-NKB","m3",500,null,null,null,"DimNKB_V"]
[null,"Faulraum, Volumen V-FR","m3",750,null,null,null,"DimFR_V"]
[null,"Filter, Oberfläche O-Fi","m2",50,null,null,null,"DimFi_O"]
[null,"(Tauch-) Tropfkörper, Oberfläche O-TK","m2",3500,null,null,null,"DimTTK_O"]
[]
["Spezifische Belastungen pro Einwohnerwert"]
[null,"Parameter","Einheit","Wert"]
[null,"Hydraulisch","l/d",{"$f":"J37","v":200},null,null,null,"EWspez_hydr",null,200]
[null,"CSB im Rohabwasser","g CSB/EW*d",{"$f":"J38","v":120},null,null,null,"EWspez_CSB",null,120]
[null,"BSB5 im Rohabwasser","g BSB5/EW*d",60,null,null,null,"EWspez_BSB5",null,60]
[null,"Gesamt-Phosphor im Rohabwasser","g Pges/EW*d",{"$f":"0.1 * J40","v":1.5},null,null,null,"EWspez_Pges",null,15]
[null,"Gesamt-Stickstoff im Rohabwasser","g Nges/EW*d",{"$f":"0.1 * J41","v":12},null,null,null,"EWspez_Nges",null,120]
[null,"Ammonium-Stickstoff im Rohabwasser","g NH4-N/EW*d",{"$f":"0.1 * J42","v":7},null,null,null,"EWspez_NH4N",null,70]
[]
["Einleitungsbedingungen GSchV"]
[null,"Parameter","Einheit","Wert"]
[null,"CSB Konz.","mg CSB/l",60,null,null,null,"EB_CSB_c"]
[null,"CSB Reinigungseffekt","%",80,null,null,null,"EB_CSB_Re"]
[null,"BSB5 Konz.","mg BSB5/l",15,null,null,null,"EB_BSB5_c"]
[null,"BSB5 Reinigungseffekt","%",90,null,null,null,"EB_BSB5_Re"]
[null,"Gesamte ungelöste Stoffe","mg GUS/l",15,null,null,null,"EB_GUS_c"]
[null,"DOC Konz.","mg DOC/l",10,null,null,null,"EB_DOC_c"]
[null,"DOC Reinigungseffekt bez. TOC","%",90,null,null,null,"EB_DOC_Re"]
[null,"Gesamt-Phosphor Konz.","mg Pges/l",0.8,null,null,null,"EB_Pges_c"]
[null,"Gesamt-Phosphor Reinigungseffekt","%",80,null,null,null,"EB_Pges_Re"]
[null,"Ammonium-Stickstoff","mg NH4-N/l",2,null,null,null,"EB_NH4N_c"]
[null,"Ammonium-Stickstoff Reinigungseffekt","%",90,null,null,null,"EB_NH4N_Re"]
[]
["Molmassen in g/Mol"]
[null,"Elemente","Symbol","Atommasse",null,"Bemerkungen",null,"Konst. Name"]
[null,"Wasserstoff","H",1.0079,null,null,null,"mM_H"]
[null,"Kohlenstoff","C",12.010999999999999,null,null,null,"mM_C"]
[null,"Stickstoff","N",14.007,null,null,null,"mM_N"]
[null,"Sauerstoff","O",15.999000000000001,null,null,null,"mM_O"]
[null,"Natrium","Na",22.99,null,null,null,"mM_Na"]
[null,"Magnesium","Mg",24.305,null,null,null,"mM_Mg"]
[null,"Aluminium","Al",26.981999999999999,null,null,null,"mM_Al"]
[null,"Phosphor","P",30.974,null,null,null,"mM_P"]
[null,"Schwefel","S",32.066000000000003,null,null,null,"mM_S"]
[null,"Chlor","Cl",35.4527,null,null,null,"mM_Cl"]
[null,"Kalium","K",39.097999999999999,null,null,null,"mM_K"]
[null,"Calcium","Ca",40.078000000000003,null,null,null,"mM_Ca"]
[null,"Eisen","Fe",55.844999999999999,null,null,null,"mM_Fe"]
[]
[null,"Stoffe","Formel","Molmasse",null,"Bemerkungen"]
[null,"Calciumcarbonat","CaCO3",{"$f":"mM_Ca + mM_C + 3*mM_O","v":100.086},null,"=Kalk, Kreide; 1 Mol = 2 Val",null,"mM_CaCO3"]
[null,"Natriumhydroxid","NaOH",{"$f":"mM_Na + mM_O + mM_H","v":39.996899999999997},null,"gelöst = Natronlauge; 1 Mol = 1 Val",null,"mM_NaOH"]
[null,"Calciumhydrat","Ca(OH)2",{"$f":"mM_Ca + 2*(mM_O + mM_H)","v":74.091800000000006},null,"=gelöschter Kalk, in Wasser aufgeschlämmt=Kalkmilch; 1 Mol = 2 Val",null,"mM_CaO2H2"]
[null,"Calciumoxid","CaO",{"$f":"mM_Ca + mM_O","v":56.077000000000005},null,"=gebrannter Kalk; 1 Mol = 2 Val",null,"mM_CaO"]
[null,"Calciumhydrogencarbonat","Ca(HCO3)2",{"$f":"mM_Ca + 2*(mM_H + mM_C + 3*mM_O)","v":162.10980000000001},null,"=Calciumbicarbonat, Soda; 1 Mol = 1 Val",null,"mM_CaHCO3"]
[null,"Natriumaluminat","NaAlO2",{"$f":"mM_Na + mM_Al + 2*mM_O","v":81.97},null,"1 Mol = 3 Val",null,"mM_NaAlO2"]
[]
["Dichteangaben in g/ml bzw. kg/m3"]
[null,"Stoffe","Abkürzung","Dichte"]
[null,"Natronlauge 30%","NaOH 30%",1.33,null,null,null,"Di_NaOH30"]
[null,"Natronlauge 50%","NaOH 50%",1.52,null,null,null,"Di_NaOH50"]
[null,"Kalkmilch 5%","Ca(OH)2 5%",1.03,null,"geschätzt",null,"Di_CaO2H2_5"]
[null,"Kalkmilch 10%","Ca(OH)2 10%",1.06,null,"geschätzt",null,"Di_CaO2H2_10"]
[null,"Kalkmilch 20%","Ca(OH)2 20%",1.1100000000000001,null,null,null,"Di_CaO2H2_20"]
[null,"Kalkmilch 40%","Ca(OH)2 40%",1.22,null,"geschätzt",null,"Di_CaO2H2_40"]
[null,"Natriumaluminat 30%","NaAlO2 30%",1.5,null,null,null,"Di_NaAlO2_30"]

{"sheet":"SBV","index":2,"n_rows":104,"n_cols":14,"rows_kept":104,"cut":false,"hidden":false,"merged":[]}
["Parameter","Einheit","Wert",null,"Bemerkungen",null,"VarName",null,"HilfsVar"]
[]
["Eingaben","Einheit","Wert"]
["Zufluss ARA (Tagesmenge)","m3/d",2000,null,null,null,"Q_24",null,null,null,"ang. EW:",400,{"$f":"$L$4*0.15","v":60},"m3/d (striktes TS)"]
["Konz. an CSB im Zufluss Rohabwasser","mg CSB/l",300,null,"fakultative Eingabe, --> Berechnungen ab Zeile 72",null,null,null,null,null,null,null,100,"m3/d (MS, inkl. FW)"]
["Konz. an BSB5 im Zufluss Rohabwasser","mg BSB5/l",null,null,"fakultative Eingabe, --> Berechnungen ab Zeile 72",null,null,null,null,null,null,null,{"$f":"$L$4*0.06","v":24},"kg BSB5/d"]
["Konz. an Pges im Zufluss Rohabwasser","mg Pges/l",null,null,"fakultative Eingabe, --> Berechnungen ab Zeile 72",null,null,null,null,null,null,null,{"$f":"$L$4*0.12","v":48},"kg CSB/d"]
["Konz. an Nges im Zufluss Rohabwasser","mg Nges/l",null,null,null,null,null,null,null,null,null,null,{"$f":"$L$4*10","v":4000},"g NH4-N/l"]
["Konz. an NH4-N im Zufluss Rohabwasser","mg NH4-N/l roh",15]
["Konz. an NH4-N im Zufluss Belüftungsbecken","mg NH4-N/l BB"]
["Säurebindevermögen (SBV) im Zufluss Belüftungsbecken (roh)","mVal/l",2.5,null,null,null,"SBVzu"]
["Minimal empfohlenes SBV im ARA-Abfluss","mVal/l",2,null,null,null,"SBVab"]
["Nitrifikationsleistung der ARA","%",90,null,null,null,null,null,{"$f":"AND(NOT(ISBLANK(C13)), C13>=0, C13<=100)","v":true}]
["Denitrifikationsleistung der ARA (bez. auf Nges/NH4N im Zufluss)","%",0,null,null,null,null,null,{"$f":"AND(NOT(ISBLANK(C14)), C14>=0, C14<=100, C14<=C13)","v":true}]
[]
["Berechnungen Nitrifikation/Alkalinität","Einheit","Wert"]
["relevante N-Fracht im Zufluss Biologie gesamt","kg N/d",{"$f":"IF(OR(ISNUMBER($C$10), ISNUMBER($C$8), ISNUMBER($C$9)), 0.001 * Q_24 * IF(ISNUMBER($C$10), $C$10, IF(ISNUMBER($C$8), $C$8, IF(ISNUMBER($C$9), $C$9, \"\"))), \"\")","v":30},null,"1. Priorität: NH4-N Zufluss BB, 2. Priorität: Nges Zufluss roh, 3. Priorität: NH4-N Zufluss roh"]
["relevante molare N-Fracht im Zufluss Biologie gesamt  ","kVal/d",{"$f":"IF(ISNUMBER($C$17), $C$17 / mM_N, \"\")","v":2.1417862497322768}]
["produzierte Säure bei 100% Nitrifikation / 0% Denitrifikation","kVal/d",{"$f":"IF(ISNUMBER($C$18), 2 * $C$18, \"\")","v":4.2835724994645537}]
["benötigte Alkalinität bei 100% Nitrifikation / 0% Denitrifikation","kVal/d",{"$f":"$C$19","v":4.2835724994645537}]
[{"$f":"\"benötigte Alkalinität bei \" & $C$13 & \"% Nitrifikation / \" & IF(ISNUMBER($C$14), $C$14, \"0\") & \"% Denitrifikation\"","v":"benötigte Alkalinität bei 90% Nitrifikation / 0% Denitrifikation"},"kVal/d",{"$f":"IF(ISNUMBER($C$17), ((2 * $C$13 * 0.01 * $C$17) / mM_N) - ((1 * $C$14 * 0.01 * $C$17) / mM_N), \"\")","v":3.855215249518098}]
["vorhandene Alkalinität bei Betriebsbedingungen","kVal/d",{"$f":"IF(AND(ISNUMBER(SBVzu), ISNUMBER(SBVab), ISNUMBER(Q_24)), (SBVzu - SBVab) * Q_24 * 0.001, \"\")","v":1}]
["zusätzlich benötigte Alkalinität bei Betriebsbedingungen (Manko)","kVal/d",{"$f":"IF(AND(ISNUMBER($C$21), ISNUMBER($C$22)), IF(($C$21 - $C$22)>0, $C$21 - $C$22, 0), \"\")","v":2.855215249518098}]
[]
["Benötigte Mengen zur Neutralisation/Pufferung pro Tag","Einheit","Wert"]
["CaCO3 (Kreide fest, 100%)","kg CaCO3/d",{"$f":"IF(ISNUMBER($C$23), $C$23 * mM_CaCO3 * 0.5, \"\")","v":142.88353673163417}]
["NaOH (100%, als Feststoff)","kg NaOH/d",{"$f":"IF(ISNUMBER($C$23), $C$23 * mM_NaOH, \"\")","v":114.1997588134504}]
["NaOH (50%-ige Lösung)","l NaOH 50%/d",{"$f":"IF(ISNUMBER($C$23), ($C$23 * mM_NaOH * (100/50)) / Di_NaOH50, \"\")","v":150.26284054401367}]
["NaOH (30%-ige Lösung)","l NaOH 30%/d",{"$f":"IF(ISNUMBER($C$23), ($C$23 * mM_NaOH * (100/30)) / Di_NaOH30, \"\")","v":286.21493436954989}]
["Ca(OH)2 (100%, als Feststoff)","kg Ca(OH)2/d",{"$f":"IF(ISNUMBER($C$23), $C$23 * mM_CaO2H2 * 0.5, \"\")","v":105.77401861212252}]
["Ca(OH)2 (5%-ige Lösung)","l Ca(OH)2 5%/d",{"$f":"IF(ISNUMBER($C$23), $C$23 * mM_CaO2H2 * 0.5 * (100/5) / Di_CaO2H2_5, \"\")","v":2053.8644390703403}]
["Ca(OH)2 (10%-ige Lösung)","l Ca(OH)2 10%/d",{"$f":"IF(ISNUMBER($C$23), $C$23 * mM_CaO2H2 * 0.5 * (100/10) / Di_CaO2H2_10, \"\")","v":997.8681001143633}]
["Ca(OH)2 (20%-ige Lösung)","l Ca(OH)2 20%/d",{"$f":"IF(ISNUMBER($C$23), $C$23 * mM_CaO2H2 * 0.5 * (100/20) / Di_CaO2H2_20, \"\")","v":476.45954329784917}]
["Ca(OH)2 (40%-ige Lösung)","l Ca(OH)2 40%/d",{"$f":"IF(ISNUMBER($C$23), $C$23 * mM_CaO2H2 * 0.5 * (100/40) / Di_CaO2H2_40, \"\")","v":216.75003813959532}]
["NaAlO2 (100% als Feststoff)","kg NaAlO2/d",{"$f":"IF(ISNUMBER($C$23), $C$23 * mM_NaAlO2 * (1/3), \"\")","v":78.013998000999493}]
["NaAlO2 (30%-ige Lösung)","l NaAlO2 30%/d",{"$f":"IF(ISNUMBER($C$23), $C$23 * mM_NaAlO2 * (1/3) * (100/30) / Di_NaAlO2_30, \"\")","v":173.36444000222113}]
[]
["Benötigte Mengen zur Neutralisation/Pufferung pro m3 Abwasser","Einheit","Wert"]
["CaCO3 (Kreide fest, 100%)","g CaCO3/m3",{"$f":"IF(AND(ISNUMBER($C$23), ISNUMBER($C$4)), 1000* $C$23 * mM_CaCO3 * 0.5 / $C$4, \"\")","v":71.441768365817083}]
["NaOH (100%, als Feststoff)","g NaOH/m3",{"$f":"IF(AND(ISNUMBER($C$23), ISNUMBER($C$4)), 1000 * $C$23 * mM_NaOH / $C$4, \"\")","v":57.099879406725201}]
["NaOH (50%-ige Lösung)","ml NaOH 50%/m3",{"$f":"IF(AND(ISNUMBER($C$23), ISNUMBER($C$4)), 1000 * ($C$23 * mM_NaOH * (100/50)) / (Di_NaOH50 * $C$4), \"\")","v":75.131420272006849}]
["NaOH (30%-ige Lösung)","ml NaOH 30%/m3",{"$f":"IF(AND(ISNUMBER($C$23), ISNUMBER($C$4)), 1000 * ($C$23 * mM_NaOH * (100/30)) / (Di_NaOH30 * $C$4), \"\")","v":143.10746718477495}]
["Ca(OH)2 (100%, als Feststoff)","g Ca(OH)2/m3",{"$f":"IF(AND(ISNUMBER($C$23), ISNUMBER($C$4)), 1000 * $C$23 * mM_CaO2H2 * 0.5 / $C$4, \"\")","v":52.887009306061259}]
["Ca(OH)2 (5%-ige Lösung)","ml Ca(OH)2 5%/m3",{"$f":"IF(AND(ISNUMBER($C$23), ISNUMBER($C$4)), 1000 * $C$23 * mM_CaO2H2 * 0.5 * (100/5) / (Di_CaO2H2_5 * $C$4), \"\")","v":1026.9322195351701}]
["Ca(OH)2 (10%-ige Lösung)","ml Ca(OH)2 10%/m3",{"$f":"IF(AND(ISNUMBER($C$23), ISNUMBER($C$4)), 1000 * ($C$23 * mM_CaO2H2 * 0.5 * (100/10)) / (Di_CaO2H2_10 * $C$4), \"\")","v":498.93405005718165}]
["Ca(OH)2 (20%-ige Lösung)","ml Ca(OH)2 20%/m3",{"$f":"IF(AND(ISNUMBER($C$23), ISNUMBER($C$4)), 1000 * ($C$23 * mM_CaO2H2 * 0.5 * (100/20)) / (Di_CaO2H2_20 * $C$4), \"\")","v":238.22977164892458}]
["Ca(OH)2 (40%-ige Lösung)","ml Ca(OH)2 40%/m3",{"$f":"IF(AND(ISNUMBER($C$23), ISNUMBER($C$4)), 1000 * ($C$23 * mM_CaO2H2 * 0.5 * (100/40)) / (Di_CaO2H2_40 * $C$4), \"\")","v":108.37501906979766}]
["NaAlO2 (100% als Feststoff)","g NaAlO2/m3",{"$f":"IF(AND(ISNUMBER($C$23), ISNUMBER($C$4)), 1000 * $C$23 * mM_NaAlO2 * (1/3) / $C$4, \"\")","v":39.006999000499746}]
["NaAlO2 (30%-ige Lösung)","ml NaAlO2 30%/m3",{"$f":"IF(AND(ISNUMBER($C$23), ISNUMBER($C$4)), 1000 * ($C$23 * mM_NaAlO2 * (1/3) * (100/30)) / (Di_NaAlO2_30 * $C$4), \"\")","v":86.682220001110565}]
[]
[{"$f":"\"Kosten pro Tag \" & IF(ISNUMBER(CHF_TrspTag), \"inkl.\", \"excl.\") &  \" Transport\"","v":"Kosten pro Tag inkl. Transport"},"Einheit","Wert",null,"Wenn die Transportkosten (Pauschale pro Jahr)"]
["CaCO3 (Kreide fest, 100%)","CHF/d",{"$f":"IF(AND(ISNUMBER($C$26), ISNUMBER(CHF_CaCO3)), 0.001 * $C$26 * CHF_CaCO3 + IF(ISNUMBER(CHF_TrspTag), CHF_TrspTag, 0), \"\")","v":23.201100223593684},null,"in Tabelle KoVar, Zelle D12, eingegeben wurde,"]
["NaOH (50%-ige Lösung)","CHF/d",{"$f":"IF(AND(ISNUMBER($C$28), ISNUMBER(Di_NaOH50), ISNUMBER(CHF_NaOH50)), 0.001 * $C$28 * Di_NaOH50 * CHF_NaOH50 + IF(ISNUMBER(CHF_TrspTag), CHF_TrspTag, 0), \"\")","v":100.35806958208583},null,"werden die Transportkosten bei den neben- und"]
["NaOH (30%-ige Lösung)","CHF/d",{"$f":"IF(AND(ISNUMBER($C$29), ISNUMBER(Di_NaOH30), ISNUMBER(CHF_NaOH30)), 0.001 * $C$29 * Di_NaOH30 * CHF_NaOH30 + IF(ISNUMBER(CHF_TrspTag), CHF_TrspTag, 0), \"\")","v":123.35028768986055},null,"untenstehen Berechnungen berücksichtigt."]
["Ca(OH)2 (100%, als Feststoff)","CHF/d",{"$f":"IF(AND(ISNUMBER($C$30), ISNUMBER(CHF_CaO2H2)), 0.001 * $C$30 * CHF_CaO2H2 + IF(ISNUMBER(CHF_TrspTag), CHF_TrspTag, 0), \"\")","v":104.07225378322102}]
["NaAlO2 (30%-ige Lösung)","CHF/d",{"$f":"IF(AND(ISNUMBER($C$36), ISNUMBER(Di_NaAlO2_30), ISNUMBER(CHF_NaAlO2_30)), 0.001 * $C$36 * Di_NaAlO2_30 * CHF_NaAlO2_30 + IF(ISNUMBER(CHF_TrspTag), CHF_TrspTag, 0), \"\")","v":269.0765696770336}]
[]
[{"$f":"\"Kosten pro Jahr \" & IF(ISNUMBER(CHF_TrspTag), \"inkl.\", \"excl.\") &  \" Transport\"","v":"Kosten pro Jahr inkl. Transport"},"Einheit","Wert"]
["CaCO3 (Kreide fest, 100%)","CHF/a",{"$f":"IF(AND(ISNUMBER($C$26), ISNUMBER(CHF_CaCO3)), 0.001 * $C$26 * CHF_CaCO3 * 365 + CHF_TrspJahr, \"\")","v":8468.4015816116953}]
["NaOH (50%-ige Lösung)","CHF/a",{"$f":"IF(AND(ISNUMBER($C$28), ISNUMBER(Di_NaOH50), ISNUMBER(CHF_NaOH50)), 0.001 * $C$28 * Di_NaOH50 * CHF_NaOH50 * 365 + CHF_TrspJahr, \"\")","v":36630.695397461328}]
["NaOH (30%-ige Lösung)","CHF/a",{"$f":"IF(AND(ISNUMBER($C$29), ISNUMBER(Di_NaOH30), ISNUMBER(CHF_NaOH30)), 0.001 * $C$29 * Di_NaOH30 * CHF_NaOH30 * 365 + CHF_TrspJahr, \"\")","v":45022.855006799102}]
["Ca(OH)2 (100%, als Feststoff)","CHF/a",{"$f":"IF(AND(ISNUMBER($C$30), ISNUMBER(CHF_CaO2H2)), 0.001 * $C$30 * CHF_CaO2H2 * 365 + CHF_TrspJahr, \"\")","v":37986.372630875674}]
["NaAlO2 (30%-ige Lösung)","CHF/a",{"$f":"IF(AND(ISNUMBER($C$36), ISNUMBER(Di_NaAlO2_30), ISNUMBER(CHF_NaAlO2_30)), 0.001 * $C$36 * Di_NaAlO2_30 * CHF_NaAlO2_30 * 365 + CHF_TrspJahr, \"\")","v":98212.947932117269}]
[]
[{"$f":"\"Kosten pro 1'000 m3 Abwasser \" & IF(ISNUMBER(CHF_TrspJahr), \"inkl.\", \"excl.\") & \" Transport\"","v":"Kosten pro 1'000 m3 Abwasser inkl. Transport"},"Einheit","Wert"]
["CaCO3 (Kreide fest, 100%)","CHF/1000 m3",{"$f":"1000 * ($C$26 * 0.001 * CHF_CaCO3 + IF(ISNUMBER(CHF_TrspTag), CHF_TrspTag, 0)) / Q_24","v":11.600550111796842}]
["NaOH (50%-ige Lösung)","CHF/1000 m3",{"$f":"1000 * ($C$28 * Di_NaOH50 * 0.001 * CHF_NaOH50 + IF(ISNUMBER(CHF_TrspTag), CHF_TrspTag, 0)) / Q_24","v":50.179034791042916}]
["NaOH (30%-ige Lösung)","CHF/1000 m3",{"$f":"1000 * ($C$29 * Di_NaOH30 * 0.001 * CHF_NaOH30 + IF(ISNUMBER(CHF_TrspTag), CHF_TrspTag, 0)) / Q_24","v":61.675143844930275}]
["Ca(OH)2 (100%, als Feststoff)","CHF/1000 m3",{"$f":"1000 * ($C$30 * 0.001 * CHF_CaO2H2 + IF(ISNUMBER(CHF_TrspTag), CHF_TrspTag, 0)) / Q_24","v":52.036126891610508}]
["NaAlO2 (30%-ige Lösung)","CHF/1000 m3",{"$f":"1000 * ($C$36 * Di_NaAlO2_30 * 0.001 * CHF_NaAlO2_30 + IF(ISNUMBER(CHF_TrspTag), CHF_TrspTag, 0)) / Q_24","v":134.53828483851683}]
[]
["Frachten und Einwohnerwerte im Rohabwasser","Einheit","Wert"]
["CSB Fracht","kg CSB/d",{"$f":"IF(AND(ISNUMBER(Q_24), ISNUMBER(C5)), 0.001 * Q_24 * C5, \"\")","v":600}]
["BSB5 Fracht","kg BSB5/d",""]
["Pges Fracht","kg Pges/d",""]
["Nges Fracht","kg Nges/d",""]
["NH4-N Fracht","kg NH4-N/d",30]
["NH4-N Fracht Zufluss BB","kg NH4-N/d BB",""]
["Einwohnerwerte hydraulisch","EW hydr",{"$f":"IF(ISNUMBER(Q_24), 1000 * Q_24 / EWspez_hydr, \"\")","v":10000}]
["Einwohnerwerte CSB","EW CSB",{"$f":"IF(AND(ISNUMBER(Q_24), ISNUMBER(C5)), Q_24 * C5 / EWspez_CSB, \"\")","v":5000}]
["Einwohnerwerte BSB5","EW BSB5",{"$f":"IF(AND(ISNUMBER(Q_24), ISNUMBER(C6)), Q_24 * C6 / EWspez_BSB5, \"\")","v":""}]
["Einwohnerwerte Pges","EW Pges",{"$f":"IF(AND(ISNUMBER(Q_24), ISNUMBER(C7)), Q_24 * C7 / EWspez_Pges, \"\")","v":""}]
["Einwohnerwerte Nges","EW Nges",{"$f":"IF(AND(ISNUMBER(Q_24), ISNUMBER(C8)), Q_24 * C8 / EWspez_Nges, \"\")","v":""}]
["Einwohnerwerte NH4-N","EW NH4-N",{"$f":"IF(AND(ISNUMBER(Q_24), ISNUMBER(C9)), Q_24 * C9 / EWspez_NH4N, \"\")","v":4285.7142857142853}]
[]
["Auslastung ARA","Einheit","Wert"]
["Hydraulisch","%",{"$f":"IF(AND(ISNUMBER(Q_24), ISNUMBER(DimQ24)), 100 * Q_24 / DimQ24, \"\")","v":66.666666666666671}]
["Biochemisch bez. CSB","%",{"$f":"IF(AND(ISNUMBER(Q_24), ISNUMBER(DimCSB), ISNUMBER($C$5)), 100 * 0.001 * Q_24 * $C$5 / DimCSB, \"\")","v":60}]
["Biochemisch bez. BSB5","%",{"$f":"IF(AND(ISNUMBER(Q_24), ISNUMBER(DimBSB5), ISNUMBER($C$6)), 100 * 0.001 * Q_24 * $C$6 / DimBSB5, \"\")","v":""}]
["Bez. Gesamt-Phosphor","%",{"$f":"IF(AND(ISNUMBER(Q_24), ISNUMBER(DimPges), ISNUMBER($C$7)), 100 * 0.001 * Q_24 * $C$7 / DimPges, \"\")","v":""}]
["Bez. Gesamt-Stickstoff","%",{"$f":"IF(AND(ISNUMBER(Q_24), ISNUMBER(DimNges), ISNUMBER($C$8)), 100 * 0.001 * Q_24 * $C$8 / DimNges, \"\")","v":""}]
["Bez. Ammonium-Stickstoff","%",{"$f":"IF(AND(ISNUMBER(Q_24), ISNUMBER(DimNH4N), ISNUMBER($C$9)), 100 * 0.001 * Q_24 * $C$9 / DimNH4N, \"\")","v":50}]
[]
["Nährstoffverhältnisse im Rohabwasser","Einheit","Wert"]
["CSB : BSB5","-",{"$f":"IF(AND(ISNUMBER($C$5), ISNUMBER(C6)), $C$5/C6, \"\")","v":""}]
["CSB : Pges","-",{"$f":"IF(AND(ISNUMBER($C$5), ISNUMBER(C7)), $C$5/C7, \"\")","v":""}]
["CSB : Nges","-",{"$f":"IF(AND(ISNUMBER($C$5), ISNUMBER(C8)), $C$5/C8, \"\")","v":""}]
["CSB : NH4-N","-",{"$f":"IF(AND(ISNUMBER($C$5), ISNUMBER(C9)), $C$5/C9, \"\")","v":20}]
["BSB5 : Pges","-",{"$f":"IF(AND(ISNUMBER($C$6), ISNUMBER(C7)), $C$6/C7, \"\")","v":""}]
["BSB5 : Nges","-",{"$f":"IF(AND(ISNUMBER($C$6), ISNUMBER(C8)), $C$6/C8, \"\")","v":""}]
["BSB5 : NH4-N","-",{"$f":"IF(AND(ISNUMBER($C$6), ISNUMBER(C9)), $C$6/C9, \"\")","v":""}]
["Nges : Pges","-",{"$f":"IF(AND(ISNUMBER($C$8), ISNUMBER(C7)), $C$8/C7, \"\")","v":""}]
["Nges : NH4-N","-",{"$f":"IF(AND(ISNUMBER($C$8), ISNUMBER(C9)), $C$8/C9, \"\")","v":""}]
["NH4-N : Pges","-",{"$f":"IF(AND(ISNUMBER($C$9), ISNUMBER(C7)), $C$9/C7, \"\")","v":""}]

{"sheet":"SBVInfo","index":3,"n_rows":50,"n_cols":7,"rows_kept":50,"cut":false,"hidden":false,"merged":[]}
["Umrechnung von Wasserhärte-Einheiten"]
[null,null,"°fH","°dH","mVal/l","mg CaO/l","mg CaCO3/l"]
[10,"°fH =",{"$f":"1 * A3","v":10},{"$f":"0.56 * A3","v":5.6000000000000005},{"$f":"0.2 * A3","v":2},null,{"$f":"10 * A3","v":100}]
[1,"°dH =",{"$f":"1.79 * A4","v":1.79},{"$f":"1 * A4","v":1},{"$f":"0.36 * A4","v":0.36},{"$f":"10 * A4","v":10}]
[1,"mVal/l =",{"$f":"5 * A5","v":5},{"$f":"2.81 * A5","v":2.81},{"$f":"1 * A5","v":1},{"$f":"28.1 * A5","v":28.1},{"$f":"50 * A5","v":50}]
[1,"mg CaCO3/l =",{"$f":"0.1 * A6","v":0.1},{"$f":"0.056 * A6","v":5.6000000000000001E-2},{"$f":"0.02 * A6","v":0.02},{"$f":"0.56 * A6","v":0.56000000000000005},{"$f":"1 * A6","v":1}]
[1,"mg Ca2+/l =",{"$f":"0.25 * A7","v":0.25},{"$f":"0.14 * A7","v":0.14000000000000001},{"$f":"0.05 * A7","v":0.05},{"$f":"A7 * (mM_CaO / mM_Ca)","v":1.3991965666949449},{"$f":"A7 * (mM_CaCO3 / mM_Ca)","v":2.4972803034083535}]
[1,"mg Mg2+/l =",{"$f":"0.41 * A8","v":0.41},{"$f":"0.23 * A8","v":0.23},{"$f":"0.082 * A8","v":8.2000000000000003E-2}]
[]
["Beurteilung von Wasserhärten"]
[null,null,"°fH","°dH","mVal/l","Vertretung"]
["sehr weich",null,"0 - 7.2","0 - 4","0 - 1.4","nur kristallin"]
["weich",null,"7.2 - 14.4","4 - 8","1.4 - 2.9"]
["mittelhart",null,"14.4 - 21.6","8 - 12","2.9 - 4.3","Schotter-Grundwasser mit Flussinfiltration"]
["ziemlich hart",null,"21.8 - 32.4","12 - 18","4.3 - 6.4","Schotter-Grundwasser (G.W.)"]
["hart",null,"32.4 - 54.0","18 - 30","8.4 - 10.7","z.T. Molassequellen"]
["sehr hart",null,"> 54.0","> 30","> 10.7","Mineralquellen (Tafelwässer)"]
[]
["Bestimmung des Säurebindevermögens (SVB)"]
["Prinzip"]
[null,"Das Säurebindevermögen (auch Carbonathärte) wird durch Titration mit Salzsäure auf einen"]
[null,"pH-Wert von 4.3 bestimmt. Es wird normalerweise ausgedrückt in französischen Härtegraden (°fH)."]
[]
["Reagenzien und Materialien"]
[null,"- Erlenmeyerkolben 300 ml"]
[null,"- Messzylinder 100 ml"]
[null,"- Schnellbetriebsbürette 5 ml oder 10 ml, Teilung 0.05 ml"]
[null,"- Magnetrührer"]
[null,"- Salzsäure 0.1 n zur Titration (0.1 n HCL)"]
[null,"- pH-Messgerät oder Methylorange-Indikatorlösung"]
[]
["Durchführung"]
[null,"100 ml Probewasser (Abfluss Vorklärung rsp. Zufluss Biologie) mit dem Messzylinder genau "]
[null,"in den Erlenmeyerkolben abmessen und ein Magnetrührstäbchen hineingeben. pH- Elektrode einsetzen "]
[null,"oder drei Tropfen Methylorange-Indikatorlösung dazugeben. Mit 0.1 n HCl bis pH 4.3 titrieren "]
[null,"oder bei Verwendung des Indikators bis zur beginnen-den Orangefärbung."]
[]
["Berechnung"]
[null,"SBV in °fH","= (Verbrauch in ml * 5) - 0.05"]
[null,"SBV in °dH","= 0.36 * [(Verbrauch in ml) - 0.25]"]
[null,"SBV in mMol/l","= (Verbrauch in ml) - 0.25"]
[]
["Störungen"]
[null,"- \tBei sehr weichen und kohlensäurereichen Proben die freie Kohlensäure (CO2) "]
[null,"  durch Erwärmen auch während der Titration entfernen."]
[null,"- Starke Eigenfärbung durch Aktivkohle entfernen."]
[null,"- \tPro mg/l Eisen (Fe) oder Mangan (Mn) vom Endergebnis 0.1 °fH abziehen.\r"]
[null,"- Beträgt der Verbrauch an 0.1 n HCl mehr als 8 ml, ist die Probe zu verdünnen."]
[null,"- \tSehr hoher Sulfatgehalt (SO42-) verursacht etwas zu hohe Werte für die Carbonathärte.\r"]
[null,"- Harte Wässer nicht zu lange stehen lassen, da sonst Calziumcarbonat (CaCO3) ausfällt und sich an den Wänden festsetzt."]

{"sheet":"PElim","index":4,"n_rows":39,"n_cols":9,"rows_kept":39,"cut":false,"hidden":false,"merged":[]}
["Parameter","Einheit","Wert",null,"Bemerkungen",null,"VarName",null,"HilfsVar"]
[]
["Eingaben","Einheit","Wert"]
["Zufluss ARA (Tagesmenge)","m3/d",1600,null,null,null,"FM_Qtot"]
["P-ges Konz. im Zufluss","mg P/l",3.5,null,null,null,"FM_cPzu"]
["P-ges Konz. im Abfluss (Einleitungsbedingung - 0.3)","mg P/l",0.5,null,null,null,"FM_cPab"]
["Anteil zu fällendes P-ges durch Eisen-Fällmittel","%",{"$f":"0.1*$I$7","v":100},null,"Rest: Aluminium",null,"FM_AnteilFe",null,1000]
["Eisen Konz. des Eisen-Fällmittels","g Fe/l",200,null,"siehe Produktedatenblatt",null,"FM_cFe",null,{"$f":"AND(NOT(ISBLANK($C$7)), $C$7>=0, $C$7<=100)","v":true}]
["Aluminium Konz. des Al-Fällmittels","g Al/l",9,null,"siehe Produktedatenblatt",null,"FM_cAl"]
[{"$f":"\"Stöchiometrie Fe: \" & TEXT($C$10,\"0.00\") & \" g Fe/g P = \" & TEXT(($C$10/mM_Fe)/(1/mM_P),\"0.00\") & \" Mol Fe/P\"","v":"Stöchiometrie Fe: 2.50 g Fe/g P = 1.39 Mol Fe/P"},"g Fe/g P",{"$f":"0.01*$I$10","v":2.5},null,"Herstellerangaben",null,"FM_Stoch_Fe",null,250]
[{"$f":"\"Stöchiometrie Al: \" & TEXT($C$11,\"0.00\") & \" g Al/g P = \" & TEXT(($C$11/mM_Al)/(1/mM_P),\"0.00\") & \" Mol Al/P\"","v":"Stöchiometrie Al: 1.20 g Al/g P = 1.38 Mol Al/P"},"g Al/g P",{"$f":"0.01*$I$11","v":1.2},null,"Herstellerangaben",null,"FM_Stoch_Al",null,120]
[]
["Betriebsparameter"]
["Pges Fracht im Zufluss","kg P/d",{"$f":"0.001 * FM_Qtot * FM_cPzu","v":5.6000000000000005},null,null,null,"FM_fPzu"]
["Pges Fracht im Abfluss","kg P/d",{"$f":"0.001 * FM_Qtot * FM_cPab","v":0.8},null,null,null,"FM_fPab"]
["zu fällende Pges Fracht","kg P/d",{"$f":"0.001 * FM_Qtot * (FM_cPzu - FM_cPab)","v":4.8000000000000007},null,null,null,"FM_fPel_kg"]
[null,"kMol P/d",{"$f":"FM_fPel_kg / mM_P","v":0.15496868341189388},null,null,null,"FM_fPel_Mol"]
[{"$f":"\"Einwohnerwerte Q-tot (\" & EWspez_hydr & \" l/EW*d)\"","v":"Einwohnerwerte Q-tot (200 l/EW*d)"},"EW",{"$f":"1000 * FM_Qtot / EWspez_hydr","v":8000}]
[{"$f":"\"Einwohnerwerte P-ges (\" & EWspez_Pges & \" l/EW*d)\"","v":"Einwohnerwerte P-ges (1.5 l/EW*d)"},"EW",{"$f":"1000 * FM_fPzu / EWspez_Pges","v":3733.3333333333339}]
["Anteil zu fällendes Pges durch Aluminium-Fällmittel","%",{"$f":"100 - FM_AnteilFe","v":0},null,null,null,"FM_AnteilAl"]
[]
["Bedarf an Fällmittel"]
["erforderliche Menge Eisen (100%)","kg Fe/d",{"$f":"0.01 * FM_AnteilFe * FM_fPel_kg * FM_Stoch_Fe","v":12.000000000000002},null,null,null,"FM_fFe_kg"]
[null,"kMol Fe/d",{"$f":"FM_fFe_kg/ mM_Fe","v":0.21488047273704006},null,null,null,"FM_fFe_Mol"]
["erforderliche Menge Aluminium (100%)","kg Al/d",{"$f":"0.01 * FM_AnteilAl * FM_fPel_kg * FM_Stoch_Al","v":0},null,null,null,"FM_fAl_kg"]
[null,"kMol Al/d",{"$f":"FM_fAl_kg / mM_Al","v":0},null,null,null,"FM_fAl_Mol"]
["β-Wert für Eisen","-",{"$f":"IF(FM_AnteilFe>0, FM_fFe_Mol / (0.01 * FM_AnteilFe * FM_fPel_Mol), \"\")","v":1.3866057838660577}]
["β-Wert für Aluminium","-",{"$f":"IF(FM_AnteilAl>0, FM_fAl_Mol / (0.01 * FM_AnteilAl * FM_fPel_Mol), \"\")","v":""}]
["β-Wert gesamt","-",{"$f":"(FM_fFe_Mol + FM_fAl_Mol) / FM_fPel_Mol","v":1.3866057838660577}]
[]
["Dosierung der Fällmittel"]
["Eisenhaltiges Fällmittel (Fe-FM)","l Fe-FM/d",{"$f":"1000 * FM_fFe_kg / FM_cFe","v":60.000000000000007},null,"benötigte Menge (Liter) pro Tag"]
[null,"l Fe-FM/h",{"$f":"1000 * FM_fFe_kg / (FM_cFe * 24)","v":2.5000000000000004},null,"erforderliche Dosierung (Liter) pro Stunde"]
[null,"ml Fe-FM/min",{"$f":"1000 * 1000 * FM_fFe_kg / (FM_cFe * 24 * 60)","v":41.666666666666671},null,"erforderliche Dosierung (Milliliter) pro Minute"]
[null,"ml Fe-FM/m3",{"$f":"1000 *1000 * FM_fFe_kg / (FM_cFe * $C$4)","v":37.500000000000007},null,"erforderliche Dosierung (Milliliter) pro m3 Abwasser"]
["Aluminiumhaltiges Fällmittel (Al-FM)","l Al-FM/d",{"$f":"1000 * FM_fAl_kg / FM_cAl","v":0}]
[null,"l Al-FM/h",{"$f":"1000 * FM_fAl_kg / (FM_cAl * 24)","v":0}]
[null,"ml Al-FM/min",{"$f":"1000 * 1000 * FM_fAl_kg / (FM_cAl * 24 * 60)","v":0}]
[null,"ml Al-FM/m3",{"$f":"1000 * 1000 * FM_fAl_kg / (FM_cAl * $C$4)","v":0}]

{"sheet":"AnfNit","index":5,"n_rows":14,"n_cols":9,"rows_kept":14,"cut":false,"hidden":false,"merged":[]}
["Parameter","Einheit","Wert",null,"Bemerkungen",null,"VarName",null,"HilfsVar, alte Formeln"]
[]
["Abwassertemperatur im Belüftungsbecken (Reaktor)","°C",{"$f":"0.1*$I$3","v":8.5},null,null,null,"Nit_Temp",null,85]
["Nges oder NH4-N Zuflusskonz.","mg/l",25,null,null,null,"Nit_cNH4Nzu",null,"e="]
["Nitrifikationsgeschwindigkeit bei 10°C","d-1",{"$f":"0.32 * EXP(1)^(0.11 * (10 - 10))","v":0.32},null,"Wachstumsgeschwindigkeit der Nitrifikanten bei 10°C",null,"Nit_vTemp10",null,{"$f":"EXP(1)","v":2.7182818284590451}]
["Nitrifikationsgeschwindigkeit bei Abwassertemp.","d-1",{"$f":"IF(Nit_Temp>0, Nit_vTemp10 * EXP(1)^(0.11 * (Nit_Temp - 10)), \"\")","v":0.27132598530813307},null,{"$f":"\"Wachstumsgeschwindigkeit der Nitrifikanten bei \" & C3 & \" °C\"","v":"Wachstumsgeschwindigkeit der Nitrifikanten bei 8.5 °C"},null,"Nit_vTemp"]
["Reduktion Anforderungen","%",{"$f":"IF(AND(Nit_Temp>0, Nit_Temp<10), 100 * ((Nit_vTemp10 - Nit_vTemp) / Nit_vTemp10), 0)","v":15.210629591208418},null,null,null,"Nit_RedEB",null,{"$f":"IF(Nit_Temp>0, IF(Nit_Temp<10, 100 * ((Nit_vTemp10 - Nit_vTemp) / Nit_vTemp10), 0), \"\")","v":15.210629591208418}]
["Anforderung NH4-N Abflusskonz.","mg/l",{"$f":"IF(AND(Nit_Temp>0, Nit_Temp<10, Nit_cNH4Nzu>0), 2 + 0.01 * Nit_RedEB * (Nit_cNH4Nzu - 2), 2)","v":5.4984448059779361},null,null,null,"Nit_EB_c",null,{"$f":"IF(Nit_Temp>0, IF(Nit_Temp<10, IF(Nit_cNH4Nzu>0, 0.01 * Nit_RedEB * Nit_cNH4Nzu, \"\"), 2), \"\")","v":3.8026573978021045}]
["Anforderung NH4-N Reinigungseffekt","%",{"$f":"IF(AND(Nit_Temp>0, Nit_Temp<10, Nit_cNH4Nzu>0), 90 - Nit_RedEB, 90)","v":74.789370408791584},null,null,null,"Nit_EB_Re",null,{"$f":"IF(Nit_Temp>0, IF(Nit_Temp<10, IF(Nit_cNH4Nzu>0, 90 - Nit_RedEB, \"\"), 90), \"\")","v":74.789370408791584}]
[]
["Runden Abflusskonz. (vielfaches von)","-",1]
["Runden Reinigungseffekt (vielfaches von)","-",1]
["Anforderung NH4-N Abflusskonz. gerundet","mg/l",{"$f":"IF(Nit_Temp>0, IF(Nit_Temp<10, IF(Nit_cNH4Nzu>0, MAX(CEILING(0.01 * Nit_RedEB * Nit_cNH4Nzu, $C$11),2), \"\"), 2), \"\")","v":4}]
["Anforderung NH4-N Reinigungseffekt gerundet","%",{"$f":"IF(Nit_Temp>0, IF(Nit_Temp<10, IF(Nit_cNH4Nzu>0, FLOOR(90 - Nit_RedEB, $C$12), \"\"), 90), \"\")","v":74}]

{"sheet":"KTB","index":6,"n_rows":119,"n_cols":9,"rows_kept":119,"cut":false,"hidden":false,"merged":[]}
["Parameter","Einheit","Wert",null,"Bemerkungen",null,"VarName",null,"HilfsVar"]
[]
["Schlammalter (Belebtschlammanlagen)"]
["Volumen Belüftungsbecken gesamt","m3",800,"*"]
["Gehalt an Trockensubstanz (TS) im Belüftungsbecken","g TS/l",3.4]
["Abzug an Überschuss-Schlamm (ÜSS) pro Tag","m3 ÜSS/d",18]
["TS-Gehalt des ÜSS","g TS/l",6.5]
["Abwassermenge pro Tag","m3/d",1500]
["gesamte ungelöste Stoffe (GUS) im Abfluss","mg/l",15]
["SBR-Zykluszeit gesamt (Summe aller Phasen)","h",12,null,"SBR: Sequencing Batch Reactor"]
["SBR-Belüftungsphase(n) pro Zyklus","h",8]
[]
["Belebtschlammmenge gesamt im System","kg",{"$f":"IF(AND(ISNUMBER($C$4), ISNUMBER($C$5)), $C$4 * $C$5, \"\")","v":2720}]
["TS-Fracht im ÜSS","kg/d",{"$f":"IF(AND(ISNUMBER($C$6), ISNUMBER($C$7)), $C$6 * $C$7, \"\")","v":117}]
["GUS-Fracht im Abfluss","kg/d",{"$f":"IF(AND(ISNUMBER($C$8), ISNUMBER($C$9)), 0.001 * $C$8 * $C$9, \"\")","v":22.5}]
["Schlammalter gesamt","d",{"$f":"IF(AND(ISNUMBER($C$13), ISNUMBER($C$14), $C$14>0), $C$13 / ($C$14 + IF(ISNUMBER($C$15), $C$15, 0)), \"\")","v":19.498207885304659},null,"GUS wird berücksichtigt, wenn eingegeben"]
["Schlammalter aerob (im SBR)","d",{"$f":"IF(AND(ISNUMBER($C$13), ISNUMBER($C$14), $C$10>0, ISNUMBER($C$11)), $C$13 / ($C$14 + IF(ISNUMBER($C$15), $C$15, 0)) * ($C$11/$C$10), \"\")","v":12.998805256869773}]
[]
["Schlammindex (SI bzw. SVI)"]
["TS-Gehalt im Belüftungsbecken","g/l",4.3]
["Absetzvolumen Belebtschlamm","ml/l",330]
[]
["Schlamm(volumen)index","ml/g",{"$f":"IF(AND(ISNUMBER($C$21), ISNUMBER($C$20), $C$20>0), $C$21 / $C$20, \"\")","v":76.744186046511629}]
[]
["Aufenthaltszeit (VKB, BB, NKB, FR)"]
["Beckenvolumen","m3",800,"*"]
["Abwassermenge bzw. Frischschlammmenge pro Tag","m3/d",1500]
[]
["Aufenthaltszeit","h",{"$f":"IF(AND(ISNUMBER($C$26), ISNUMBER($C$27), $C$27>0), $C$26 / ($C$27 / 24), \"\")","v":12.8}]
[]
["hydraulische Oberflächenbelastung (VKB, NKB)"]
["Beckenoberfläche","m2",200,"*"]
["Abwassermenge pro Tag","m3/d",1500]
[]
["hydraulische Oberflächenbelastung","m/h",{"$f":"IF(AND(ISNUMBER($C$33), ISNUMBER($C$32), $C$32>0), $C$33 / (24 * $C$32), \"\")","v":0.3125}]
[]
["TS-Oberflächenbelastung NKB"]
["Beckenoberfläche NKB","m2",200,"*"]
["Abwassermenge pro Tag","m3/d",500]
["TS-Gehalt im Belüftungsbecken","g TS/l",3]
[]
["TS-Oberflächenbelastung","g/m2/h",{"$f":"IF(AND(ISNUMBER($C$39), ISNUMBER($C$40), ISNUMBER($C$38), $C$38>0), 1000 * ($C$39 * $C$40) / (24 * $C$38), \"\")","v":312.5}]
[]
["Schlammvolumenbelastung NKB"]
["Beckenoberfläche NKB","m2",200,"*"]
["Abwassermenge pro Tag","m3/d",444]
["TS-Gehalt im Belüftungsbecken","g TS/l"]
["Absetzvolumen Belebtschlamm","ml/l",250]
[]
["Schlammvolumenbelastung","l/m2*h",{"$f":"IF(AND(ISNUMBER($C$46), ISNUMBER($C$48), ISNUMBER($C$45), $C$45>0), ($C$46 * $C$48) / (24 * $C$45), \"\")","v":23.125}]
[]
["BSB5- bzw. CSB-Schlammbelastung BB"]
["Volumen Belüftungsbecken","m3",800,"*"]
["Abwassermenge pro Tag","m3/d",426]
["Konzentration (BSB5 bzw. CSB) im Zufluss BB","mg/l",177]
["TS-Gehalt im BB","g/l",2.6]
[]
["BSB5- bzw. CSB-Schlammbelastung im BB","g/g TS*d",{"$f":"IF(AND(ISNUMBER($C$54), ISNUMBER($C$55), ISNUMBER($C$53), $C$53>0, ISNUMBER($C$56)), (0.001 * $C$54 * $C$55) / ($C$53 * $C$56), \"\")","v":3.6250961538461537E-2}]
[]
["BSB5- bzw. CSB-Volumenbelastung BB"]
["Volumen Belüftungsbecken","m3",800,"*"]
["Abwassermenge pro Tag","m3/d",426]
["Konzentration (BSB5 bzw. CSB) im Zufluss BB","mg/l",177]
[]
["BSB5- bzw. CSB-Oberflächenbelastung BB","g/m3*d",{"$f":"IF(AND(ISNUMBER($C$62), ISNUMBER($C$63), ISNUMBER($C$61), $C$61>0), (0.001 * $C$62 * $C$63) / $C$61, \"\")","v":9.4252500000000003E-2}]
[]
["BSB5- bzw. CSB-Oberflächenbelastung (TK/TTK)"]
["Oberfläche (Tauch-) Tropfkörper (TK/TTK)","m2",3500,"*"]
["Abwassermenge pro Tag","m3/d",500]
["BSS5- bzw. CSB-Konzentration im Zufluss TK/TTK","mg/l",463]
[]
["BSB5- bzw. CSB-Oberflächenbelastung TK/TTK","g/m2*d",{"$f":"IF(AND(ISNUMBER($C$70), ISNUMBER($C$69), ISNUMBER($C$68), $C$68>0), ($C$70 * $C$69) / $C$68, \"\")","v":66.142857142857139}]
[]
["hydr. Oberflächenbelastung (Filter)"]
["Oberfläche Filter","m2",50,"*"]
["Abwassermenge pro Tag","m3/d",500]
[]
["hydr. Oberflächenbelastung Filter","m3/m2*h",{"$f":"IF(AND(ISNUMBER($C$76), ISNUMBER($C$75), $C$75>0), $C$76 / (24 * $C$75), \"\")","v":0.41666666666666669}]
[]
["TS- und oTS-Belastung Faulraum"]
["Volumen Faulraum","m3",750,"*"]
["Frischschlammmenge pro Tag","m3/d",30]
["TS-Gehalt des Frischschlammes","%",3.5]
["Glühverlust des Frischschlammes (GV = oTS)","%",70]
[]
["TS-Fracht Frischschlamm","kg/d",{"$f":"IF(AND(ISNUMBER($C$82), ISNUMBER($C$83)), 10 * $C$82 * $C$83, \"\")","v":1050}]
["oTS-Fracht Frischschlamm","kg/d",{"$f":"IF(AND(ISNUMBER($C$82), ISNUMBER($C$83), ISNUMBER($C$84)), 0.1 * $C$82 * $C$83 * $C$84, \"\")","v":735}]
["hydr. Aufenthaltszeit im Faulraum","d",{"$f":"IF(AND(ISNUMBER($C$81), ISNUMBER($C$82), $C$82>0), $C$81 / $C$82, \"\")","v":25}]
["TS-Belastung Faulraum","kg TS/m3*d",{"$f":"IF(AND(ISNUMBER($C$86), ISNUMBER($C$81), $C$81>0), $C$86 / $C$81, \"\")","v":1.4}]
["oTS-Belastung Faulaum","kg oTS/m3*d",{"$f":"IF(AND(ISNUMBER($C$87), ISNUMBER($C$81), $C$81>0), $C$87 / $C$81, \"\")","v":0.98}]
[]
["Abbauleistungen"]
["Konzentration im ARA-Zufluss","mg/l",6.5]
["Konzentration im ARA-Abfluss","mg/l",0.25]
[]
["Abbauleistung","%",{"$f":"IF(AND(ISNUMBER($C$93), ISNUMBER($C$94), $C$93>0), 100 * ($C$93 - $C$94) / $C$93, \"\")","v":96.15384615384616}]
[]
["Benchmarks"]
["Strombezug Netz in Betrachtungsperiode","kWh/p",10000,null,"beliebige Betrachtungsperiode (p): z.B. 7 Tage, 3 Monat3, 1 Jahr"]
["Stromproduktion in Betrachtungsperiode","kWh/p",2000]
["Abwassermenge pro Betrachtungsperiode","m3/p",50000]
["CSB-Konz. Zufluss, Mittelwert in Betrachtungsperiode","mg/l",225]
["CSB-Konz. Abfluss, Mittelwert in Betrachtungsperiode","mg/l",34]
[]
["Frischschlamm (FrS), Menge in Betrachtungsperiode","m3/p",350]
["TS-Gehalt FrS, Mittelwert in Betrachtungsperiode","%",3.5]
["oTS-Gehalt FrS, Mittelwert in Betrachtungsperiode","%",75]
["Gasproduktion in Betrachtungsperiode","m3/p",75000]
[]
["Stromverbrauch Total in Betrachtungsperiode","kWh/p",{"$f":"IF(ISNUMBER($C$99), $C$99, 0) + IF(ISNUMBER($C$100), $C$100, 0)","v":12000}]
["Stromverbrauch pro m3 Abwasser","kWh/m3",{"$f":"IF(AND(ISNUMBER($C$110), $C$110>0, ISNUMBER($C$101), $C$101>0), $C$110 / $C$101, \"\")","v":0.24}]
["Stromverbrauch pro kg CSB im Zufluss","kWh/kg CSB zu",{"$f":"IF(AND($C$110>0, ISNUMBER($C$101), ISNUMBER($C$102)), $C$110 / (0.001 * $C$101 * $C$102), \"\")","v":1.0666666666666667}]
["Stromverbrauch pro kg CSB abgebaut","kWh/kg CSB el",{"$f":"IF(AND($C$110>0, ISNUMBER($C$101), ISNUMBER($C$102), ISNUMBER($C$103), $C$102>$C$103), $C$110 / (0.001 * $C$101 * ($C$102 - $C$103)), \"\")","v":1.256544502617801}]
["Strom-Eigendeckungsgrad","%",{"$f":"IF(AND(ISNUMBER($C$100), ISNUMBER($C$99)), 100 * $C$100 / ($C$99 + $C$100), \"\")","v":16.666666666666668}]
[]
["Gasproduktion pro m3 Abwasser","m3/m3",{"$f":"IF(AND(ISNUMBER($C$108), ISNUMBER($C$101), $C$101<>0), $C$108/$C$101, \"\")","v":1.5}]
["Gasproduktion pro m3 Frischschlamm","m3/m3 FrS",{"$f":"IF(AND(ISNUMBER($C$108), ISNUMBER($C$105), $C$105<>0), $C$108 / $C$105, \"\")","v":214.28571428571428}]
["Gasproduktion pro kg TS im Frischschlamm","m3/kg TS",{"$f":"IF(AND(ISNUMBER($C$108), ISNUMBER($C$105), ISNUMBER($C$106)), $C$108 / (10 * $C$105 * $C$106), \"\")","v":6.1224489795918364}]
["Gasproduktion pro kg oTS im Frischschlamm","m3/kg oTS",{"$f":"IF(AND(ISNUMBER($C$108), ISNUMBER($C$105), ISNUMBER($C$106), ISNUMBER($C$107)), $C$108 / (0.1 * $C$105 * $C$106 * $C$107), \"\")","v":8.1632653061224492}]

{"sheet":"KSew","index":7,"n_rows":11,"n_cols":9,"rows_kept":11,"cut":false,"hidden":false,"merged":[]}
["Parameter","Einheit","Wert",null,"Bemerkungen",null,"VarName",null,"HilfsVar"]
[]
["Klärschlamm flüssig, Menge","m3",1500,null,"Eingabe von beliebigen 3 der 4 Parametern (gelbe Felder)."]
["Klärschlamm flüssig, TS-Konz.","%",5,null,"Den zu berechnenden gesuchten Parameter vorher löschen."]
[null,null,null,null,"Berechnung durch Click auf Button <berechnen>."]
["Klärschlamm entwässert, Menge","m3 bzw. t",null,null,"Bei der berechneten Menge an Zentrat ist das Wassers"]
["Klärschlamm entwässert, TS-Gehalt","%",35,null,"des Flockungsmittels nicht berücksichtigt."]
[]
["Zentrat, anfallende Menge","m3"]
["TS-Fracht (in flüssigem UND entwässerten Schlamm gleich)","t TS"]
["Mengenreduktion, bez. auf Menge flüssig (Entwässerungsg.)","%"]